Cogmind - Beta 15 @@@ ROGUE MODE // 2025.09.29 @ 16:25:58 Player: Autumn Result: Destroyed by G-47 Trooper with Particle Gun Performance ------------- Evolutions (2) 1000 Regions Visited (4) 800 Robots Destroyed (28) 140 Value Destroyed (503) 503 Prototype IDs (2) 40 Alien Tech Used (0) 0 Bonus (0) 0 TOTAL SCORE: 2483 Bonus ------- None Cogmind --------- Core Integrity 0/550 Matter 152/400 Energy 250/250 System Corruption 0% Temperature Cool (9) Movement Flying (120) Ox1 Location -8/Materials Parts ------- > --- POWER (2) -------- (None) > --- PROPULSION (4) --- Flight Unit > --- UTILITY (3) ------ Medium Battery Medium Matter Pod Structural Scanner > --- WEAPON (2) ------- (None) > --- INVENTORY (5) ---- Light Ion Engine Light Assault Rifle Peak State ------------ > --- POWER ------------ Light Deuterium Engine > --- PROPULSION ------- Flight Unit Flight Unit Improved Flight Unit Cesium-ion Thruster > --- UTILITY ---------- Medium Battery Medium Matter Pod Structural Scanner > --- WEAPON ----------- Heavy Particle Gun Rocket Launcher > --- INVENTORY -------- Light Ion Engine Light Nuclear Core Flight Unit [Rating: 20] Favorites ----------- Power Light Ion Engine Engine Light Ion Engine Power Core Light Nuclear Core Propulsion Flight Unit Leg Aluminum Leg Flight Unit Flight Unit Utility Structural Scanner Device Structural Scanner Storage Medium Battery Weapon Medium Laser Energy Gun Medium Laser Ballistic Gun Assault Rifle Launcher Rocket Launcher Build | -11 -10 -10 -9 -8 ------- Run | Yrd Mat Min Mat Mat Slots Evolved 4 | . . . 2 2 Power 1 | . . . . 1 Propulsion 2 | . . . 2 . Utility 1 | . . . . 1 Weapon . | . . . . . Parts Attached 25 | 6 7 3 2 7 Power 5 | 1 1 . . 3 Engine 4 | 1 1 . . 2 Core 1 | . . . . 1 Reactor . | . . . . . Propulsion 10 | 2 2 2 2 2 Treads . | . . . . . Leg 2 | 2 . . . . Wheel . | . . . . . Hover . | . . . . . Flight 8 | . 2 2 2 2 Utility 5 | 1 4 . . . Device 2 | . 2 . . . Storage 3 | 1 2 . . . Processor . | . . . . . Hackware . | . . . . . Protection . | . . . . . Artifact . | . . . . . Weapon 5 | 2 . 1 . 2 Energy Gun 3 | 1 . . . 2 Energy Cannon . | . . . . . Ballistic Gun 1 | 1 . . . . Ballistic Cannon . | . . . . . Launcher 1 | . . 1 . . Special Weapon . | . . . . . Impact Weapon . | . . . . . Slashing Weapon . | . . . . . Piercing Weapon . | . . . . . Special Melee Weapon . | . . . . . Unidentified Prototypes 2 | . . . . 2 Parts Lost 11 | . . 1 1 9 Power 2 | . . . . 2 Propulsion 6 | . . 1 1 4 Utility . | . . . . . Weapon 3 | . . . . 3 Highest Loss Streak 6 | . . 1 1 6 To Critical Strikes 1 | . . 1 . . Average Backups 3 | 1 4 4 4 3 Power 1 | . 1 2 2 2 Propulsion . | . . . . . Utility 1 | . . 2 2 . Weapon . | . 1 . . . Tool/Special . | . . . . . Unused Backups 6 | . 3 . . 3 Power 2 | . 1 . . 1 Propulsion 1 | . . . . 1 Utility . | . . . . . Weapon 3 | . 2 . . 1 Tool/Special . | . . . . . Average Slot Usage (%) 91 | . 87 100 98 72 Engine 11 | . 14 14 11 9 Leg 2 | . 10 . . . Flight 31 | . 17 28 42 28 Device 16 | . 10 28 19 9 Storage 5 | . 8 . 2 14 Energy Gun 11 | . 14 14 11 4 Ballistic Gun 4 | . 10 11 . . Launcher 5 | . . 2 11 5 Peak Build Rating 20 | 6 8 9 12 20 Average Rating 9 | 4 6 8 11 13 On Entrance 6 | . 6 8 9 9 Naked Turns . | . . . . . Heaviest Build 17 | 12 12 10 12 17 Greatest Support 22 | 20 20 14 22 18 Greatest Overweight (x) . | . . . . . Average Overweight (x) . | . . . . . Largest Inventory Capacity 8 | 8 8 5 5 5 Average Capacity 5 | 7 6 5 5 5 Most Carried 5 | 5 5 5 5 5 Average Carried 4 | 2 4 4 4 3 Final Capacity 8 | 8 5 5 5 5 Final Carried 5 | 2 5 5 4 2 Class Distribution -------------------- 51% | Mutant 31% | Scavenger-Sprinter 11% | Sprinter 5% | Scavenger-Mutant Dominant Class ---------------- Mutant | -10/Materials Mutant | -10/Mines Scavenger-Sprinter | -9/Materials Sprinter | -8/Materials Resources | -11 -10 -10 -9 -8 ----------- Run | Yrd Mat Min Mat Mat Matter Collected 756 | 258 232 73 . 193 Remotely . | . . . . . Salvage Created 564 | . 174 29 80 281 Parts 49 | . 13 3 5 28 Haulers Intercepted 3 | . 1 . 1 1 Recyclers Shooed . | . . . . . Parts Field Recycled . | . . . . . Retrieved Matter . | . . . . . Parts Self-Destructed . | . . . . . Prevented . | . . . . . Kills | -11 -10 -10 -9 -8 ------- Run | Yrd Mat Min Mat Mat Combat Hostiles Destroyed 16 | . 6 2 1 7 Guns 12 | . 6 2 . 4 AOE 4 | . . . 1 3 Classes Destroyed 10 | . 3 . 1 6 Builder 1 | . . . . 1 Hauler 3 | . 1 . 1 1 Recycler 1 | . . . . 1 Mechanic 1 | . . . . 1 Operator 1 | . . . . 1 Watcher 5 | . 2 . 1 2 Swarmer 12 | . 6 2 . 4 Grunt 1 | . . . 1 . Sentry 2 | . . . . 2 Hunter 1 | . . . . 1 Best Kill Streak 6 | . 4 2 2 6 Combat Bots Only 3 | . 3 2 1 3 Max Kills in Single Turn 2 | . 1 1 1 2 Gunslinging . | . . . . . Exploded 1 | . . . 1 1 Melee . | . . . . . Uniques/NPCs Destroyed . | . . . . . Combat | -11 -10 -10 -9 -8 -------- Run | Yrd Mat Min Mat Mat Hostile Shots Fired 197 | . 30 21 5 141 Missed 77 | . 11 10 3 53 Hits 120 | . 19 11 2 88 Melee 1 | . . . 1 . Projectile 119 | . 19 11 1 88 Critical Strikes 5 | . . 1 1 3 Damage Taken 1335 | . 148 97 119 971 Core 662 | . 35 18 44 565 Absorbed by Shields . | . . . . . Core Remaining (%) 89 | 100 . 78 89 . Volleys Fired 89 | . 26 6 8 49 Largest 2 | . 2 2 2 2 Hottest 88 | . 70 70 83 88 Shots Fired 112 | . 36 12 13 51 Gun 81 | . 36 12 7 26 Cannon . | . . . . . Launcher 31 | . . . 6 25 Special . | . . . . . Kinetic 16 | . 10 6 . . Thermal 65 | . 26 6 7 26 Explosive 31 | . . . 6 25 Electromagnetic . | . . . . . Robot Hit Streak 6 | . 5 5 6 5 Robot Miss Streak 6 | . 5 6 2 6 Penetration Max . | . . . . . Secondary Targets 2 | . 2 . . . Max Gunslinging Chain 1 | . 1 . . . Shots Hit Robots 41 | . 19 5 3 14 Core Hits 40 | . 10 2 7 21 Critical Kills . | . . . . . Critical Parts Destroyed . | . . . . . Critical Strikes 4 | . 2 1 . 1 Burn 4 | . 2 1 . 1 Melee Attacks . | . . . . . Impact . | . . . . . Slashing . | . . . . . Piercing . | . . . . . Sneak Attacks . | . . . . . Combat Hostiles . | . . . . . Follow-up Attacks . | . . . . . Damage Inflicted 1278 | . 232 58 245 743 Guns 518 | . 232 58 38 190 Cannons . | . . . . . Explosions 760 | . . . 207 553 Melee . | . . . . . Ramming . | . . . . . Kinetic 90 | . 69 21 . . Thermal 428 | . 163 37 38 190 Explosive 760 | . . . 207 553 Electromagnetic . | . . . . . Impact . | . . . . . Slashing . | . . . . . Piercing . | . . . . . Highest Corruption . | . . . . . Average Corruption . | . . . . . Corruption Purged . | . . . . . Corruption Blocked . | . . . . . Overload Shots . | . . . . . Overflow Damage 20 | . . . 16 4 Projectiles . | . . . . . Explosions 20 | . . . 16 4 Melee . | . . . . . Knockbacks . | . . . . . Impact . | . . . . . Kinetic . | . . . . . Secondary . | . . . . . Self-Inflicted Damage 112 | . . . 80 32 Shots 5 | . . . 3 2 Rammed . | . . . . . Targets Rammed . | . . . . . Kicked . | . . . . . Crushed . | . . . . . Highest Temperature 168 | . 71 76 69 168 Average Temperature 38 | . 24 44 28 52 Received Heat Transfer 309 | . . 6 6 297 Siege Activations . | . . . . . Martial Activations . | . . . . . Shielding Activations . | . . . . . Robots Disrupted . | . . . . . Combat Hostiles . | . . . . . Robots Corrupted . | . . . . . Combat Hostiles . | . . . . . Parts Fried . | . . . . . Impact Corruptions . | . . . . . Robots Melted . | . . . . . Combat Hostiles . | . . . . . Parts Melted 3 | . 2 . . 1 Heat Transferred 1369 | . 629 185 111 444 Parts Sabotaged . | . . . . . Parts Stolen . | . . . . . Parts Stripped . | . . . . . Power Chain Reactions . | . . . . . Alert | -11 -10 -10 -9 -8 ------- Run | Yrd Mat Min Mat Mat Maximum Alert Level 1 | . . . . 1 Low Security (%) 93 | 100 100 100 100 63 Level 1 6 | . . . . 36 Level 2 . | . . . . . Level 3 . | . . . . . Level 4 . | . . . . . Level 5 . | . . . . . High Security . | . . . . . Max Security . | . . . . . Peak Influence 292 | . 114 78 125 292 Initial 16 | . . 13 16 . Average 52 | . 49 51 11 167 Influence Increases 942 | . 165 140 190 447 Destroy 0b10 Robot/C 320 | . 120 40 20 140 Destroy 0b10 Robot/NC 60 | . 15 . 10 35 Destroy Leader 86 | . 26 10 4 46 Successful Hack 4 | . 4 . . . Disable Machine 90 | . . 15 45 30 Destroy Structure 157 | . . . 36 121 Partial Spotted 75 | . . 15 30 30 Lose Combat Pursuer 150 | . . 60 45 45 Influence Decreases 705 | . 130 132 233 210 Entered New Map 49 | . . 22 27 . Time Decay 421 | . 130 100 71 120 Lost Part 110 | . . 10 10 90 Purge Threat 125 | . . . 125 . Squads Dispatched 4 | . 1 . 1 2 Investigation 2 | . 1 . 1 . Extermination . | . . . . . Reinforcement 1 | . . . . 1 Assault . | . . . . . Garrison 1 | . . . . 1 Intercept . | . . . . . Searches Triggered . | . . . . . Construction Impeded . | . . . . . Haulers Reinforced . | . . . . . Active Scanning Responses . | . . . . . Cargo Convoy Interrupts . | . . . . . Stealth | -11 -10 -10 -9 -8 --------- Run | Yrd Mat Min Mat Mat Distress Signals 2 | . . . 1 1 Communications Jammed . | . . . . . Distress Signals . | . . . . . Times Spotted 47 | . 8 7 8 24 Peak Tracking Total 11 | . 3 5 5 11 Tactical Retreats 7 | . . 2 3 2 Traps | -11 -10 -10 -9 -8 ------- Run | Yrd Mat Min Mat Mat Traps Triggered 1 | . 1 . . . Indirectly . | . . . . . Trap Hack Attempts . | . . . . . Triggered . | . . . . . Disarmed . | . . . . . Reprogrammed . | . . . . . Reused . | . . . . . Traps Extracted . | . . . . . Installed . | . . . . . Triggered . | . . . . . Machines | -11 -10 -10 -9 -8 ---------- Run | Yrd Mat Min Mat Mat Machines Disabled 6 | . . 1 3 2 Max in Single Turn 2 | . . 1 2 1 Garrison Access 1 | . . . . 1 Machines Repaired . | . . . . . Machines Dismantled . | . . . . . Machines Sabotaged . | . . . . . Overloaded Fab Kills . | . . . . . Hacking | -11 -10 -10 -9 -8 --------- Run | Yrd Mat Min Mat Mat Machines Accessed 6 | . 3 . 2 1 Terminals 4 | . 3 . 1 . Fabricators . | . . . . . Repair Stations 1 | . . . 1 . Recycling Units . | . . . . . Scanalyzers . | . . . . . Garrison Access 1 | . . . . 1 Total Hacks 15 | . 8 . 6 1 Successful 10 | . 4 . 5 1 Failed 5 | . 4 . 1 . Catastrophic 1 | . 1 . . . Database Lockouts . | . . . . . Manual . | . . . . . Terminals 11 | . 8 . 3 . Fabricators . | . . . . . Repair Stations 3 | . . . 3 . Recycling Units . | . . . . . Scanalyzers . | . . . . . Garrison Access 1 | . . . . 1 Terminal Hacks 7 | . 4 . 3 . Record 3 | . 2 . 1 . Alert Level 2 | . 1 . 1 . Unreport Threat 1 | . . . 1 . Recall Investigation 1 | . 1 . . . Fabricator Hacks . | . . . . . Repair Station Hacks 2 | . . . 2 . Scan Component 2 | . . . 2 . Recycling Unit Hacks . | . . . . . Scanalyzer . | . . . . . Garrison Access Hacks 1 | . . . . 1 Seal Access 1 | . . . . 1 Unauthorized Hacks . | . . . . . Terminals . | . . . . . Fabricators . | . . . . . Repair Stations . | . . . . . Recycling Units . | . . . . . Scanalyzers . | . . . . . Garrison Access . | . . . . . Data Cores Recovered 1 | . . . . 1 Used . | . . . . . Hacking Detections 4 | . 2 . 2 . Full Trace Events 1 | . . . 1 . Feedback Events . | . . . . . Feedback Blocked . | . . . . . Robot Schematics Acquired . | . . . . . Robots Built . | . . . . . Authchips . | . . . . . Time . | . . . . . Total Robot Build Rating . | . . . . . Part Schematics Acquired . | . . . . . Parts Built . | . . . . . Authchips . | . . . . . Time . | . . . . . Total Part Build Rating . | . . . . . Parts Repaired . | . . . . . Time . | . . . . . Parts Recycled . | . . . . . Recycled Matter . | . . . . . Retrieved Matter . | . . . . . Retrieved Components . | . . . . . Parts Scanalyzed . | . . . . . Part Schematics Acquired . | . . . . . Parts Damaged . | . . . . . Bothacking | -11 -10 -10 -9 -8 ------------ Run | Yrd Mat Min Mat Mat Used RIF Installer . | . . . . . Robots Hacked . | . . . . . Non-combat . | . . . . . Combat . | . . . . . Robot Hacks Applied . | . . . . . Relay Couplers Released . | . . . . . Fabnet Peak Effective % . | . . . . . Robots Rewired . | . . . . . Allies Hacked . | . . . . . Hacks Repelled . | . . . . . Allies | -11 -10 -10 -9 -8 -------- Run | Yrd Mat Min Mat Mat Total Allies . | . . . . . Largest Group . | . . . . . Highest-Rated Group . | . . . . . Highest-Rated Ally . | . . . . . Total Orders . | . . . . . Ally Attacks . | . . . . . Total Damage . | . . . . . Kills . | . . . . . Allies Corrupted . | . . . . . Allies Melted . | . . . . . Intel | -11 -10 -10 -9 -8 ------- Run | Yrd Mat Min Mat Mat Active Infowar (turns) 1175 | . 160 200 568 247 Structural 1175 | . 160 200 568 247 Robot Analysis Total . | . . . . . Derelict Logs Recovered 1 | . . 1 . . Drone Launches . | . . . . . Drone Recoveries . | . . . . . Exploration | -11 -10 -10 -9 -8 ------------- Run | Yrd Mat Min Mat Mat Turns Passed 1433 | 66 352 200 568 247 Spaces Moved 1615 | 57 513 397 284 364 Core 22 | 22 . . . . Treads . | . . . . . Legs 110 | 35 75 . . . Wheels . | . . . . . Hover . | . . . . . Flight 1483 | . 438 397 284 364 Fastest Speed 29 | 50 37 37 29 29 Average Speed 40 | 92 49 37 31 31 Slowest Speed 120 | 120 120 37 34 34 Overloaded Moves . | . . . . . Propulsion Burnouts . | . . . . . Robots Hopped 11 | . 3 5 . 3 Potential Cave-ins . | . . . . . Cave-ins Triggered . | . . . . . Exploration Rate (%) 36 | 4 50 74 28 27 Regions Visited 4 Branch Regions 1 Pre-discovered Areas . | . . . . . Known Exits Taken . | . . . . . Unknown Exits Taken 4 | 1 1 1 1 . Scrap Searched 1 | . . 1 . . Spaces Dug 70 | . . . 13 57 Terrain Destroyed 237 | . . . 36 201 Melee . | . . . . . Projectile . | . . . . . AOE 237 | . . . 36 201 Terrain Rammed . | . . . . . Walls Destroyed . | . . . . . Machines Disabled . | . . . . . Actions | -11 -10 -10 -9 -8 --------- Run | Yrd Mat Min Mat Mat Total 2274 | 70 578 433 748 445 Wait 495 | . 6 26 453 10 Move 1589 | 56 506 386 283 358 Hop 11 | . 3 5 . 3 Pick Up 35 | 8 14 4 1 8 Fast Attach . | . . . . . Attach 24 | 6 6 2 2 8 Detach 4 | . 3 . . 1 Swap 9 | . 4 1 1 3 Drop 18 | . 10 3 . 5 Fire 89 | . 26 6 8 49 Melee . | . . . . . Ram . | . . . . . Kick . | . . . . . Crush . | . . . . . Escape Stasis . | . . . . . Rewire . | . . . . . Trap . | . . . . . Miscellaneous . | . . . . . Route ------- -11/Scrapyard -10/Materials -10/Mines -9/Materials (discovered 2 exits: *Mat / [*Min]) -8/Materials (discovered 1 exit: [*Fac]) History --------- Turn | Location | Event 8 | -11/Scrapyard | Discovered new exit (range 15) 67 | -11/Scrapyard | Entered Materials 319 | -10/Materials | Build established: Mutant 412 | -10/Materials | Discovered new exit (range 15) 419 | -10/Materials | Entered Mines 580 | -10/Mines | Discovered new exit (range 12) 585 | -10/Mines | Received a Rocket Launcher from a helpful Derelict 619 | -10/Mines | Entered Materials 619 | -9/Materials | Evolved 2 slots: Propulsion x2 911 | -9/Materials | Build established: Scavenger-Sprinter 1177 | -9/Materials | Discovered new exit (range 16) 1179 | -9/Materials | Discovered new exit (range 12) 1187 | -9/Materials | Entered another Materials area 1187 | -8/Materials | Evolved 2 slots: Power x1, Utility x1 1342 | -8/Materials | Discovered new exit (range 14) 1368 | -8/Materials | Garrison activated, responded to threat 1421 | -8/Materials | Core integrity fell below 50% 1429 | -8/Materials | Core integrity fell below 20% 1434 | -8/Materials | Destroyed by G-47 Trooper with Particle Gun Last Messages --------------- U-05 Engineer builds a Wall. U-05 Engineer lays Concrete. Connecting with Garrison Access... Current location identified: Materials >>Seal Access door sealed. S-10 Pest destroyed. S-10 Pest suffers critical hit (Burn). Lgt. Ion Engine melted. S-10 Pest destroyed. Flight Unit destroyed. Electrolysis Chamber disabled. Lgt. Deuterium Engine destroyed. Cesium-ion Thruster destroyed. R-06 Scavenger collects Flight Unit. Critical hit (Burn: +37). R-06 Scavenger collects Lgt. Assault Rifle. Lgt. Nuclear Core destroyed. Hvy. Particle Gun destroyed. Critical hit (Burn: +37). Map ----- +----------------------------------------------------+ | ########################### ###### ???????????? | | ### ################### #########????###????? | | ##????? | | ??? < ##????? | | ??? ##????? | | ### ######## ######+#############/#####????? | | ####/########## ### ##### ?????? | | # ###### ###???????????????????????????? | | # ##### ###???????????????????????????? | | # #### ###???????????????????????????? | | # #### ###???????????????????????????? | | # ###### ###???????????????????????????? | | # = ###### ###???????????????????????????? | | # %###### ###???????????????????????????? | | # ###### ###???????????????????????????? | | # / #########?????????????????????? | | ############### #########?????????????????????? | | ####### ####### # ##?????????????????????? | | ??????????????## # "" ##?????????????????????? | | ??????????????## # "G ##?????????????????????? | | ??????????????## # "" ##?????????????????????? | | ??????????????## # Y ##?????????????????????? | | ??????????????## + Y""" ##?????????????????????? | | ??????????????## # Y ""s##?????????????????????? | | ??????????????## # % "" # ?????????????????????? | | ??????????????## #! %g @# ?????????????????????? | | ??????????????## # Ygs # ?????????????????????? | | ??????????????## ######## ?????????????????????? | | ?????????????? # ?????????????????????? | | ?????????????? ?????????????????????????????? | | ???????????? ?????????????????????????????? | | ????????????## ?????????????????????????????? | | ????????????## ?????????????????????????????? | | ????????????##! !#????????????????????????????? | | ????????????###!!!!##????????????????????????????? | | ????????????#########????????????????????????????? | | ?????????????#######?????????????????????????????? | | ?????????????????????????????????????????????????? | | ?????????????????????????????????????????????????? | | ?????????????????????????????????????????????????? | | ?????????????????????????????????????????????????? | | ?????????????????????????????????????????????????? | | ?????????????????????????????????????????????????? | | ?????????????????????????????????????????????????? | | ?????????????????????????????????????????????????? | | ?????????????????????????????????????????????????? | | ?????????????????????????????????????????????????? | | ?????????????????????????????????????????????????? | | ?????????????????????????????????????????????????? | | ?????????????????????????????????????????????????? | +----------------------------------------------------+ Best States ------------- Heat Dissipation 31 Energy Generation 19 Energy Capacity 315 Matter Stores 400 Matter Capacity 400 Sight Range 16 Terrain Scan Density 10 Additional Mass Support 6 Evasion (%) 64 Item Schematics ----------------- None Robot Schematics ------------------ None Fabricated ------------ Nothing Repaired ---------- Nothing Alien Tech Used ----------------- None Achievements -------------- Everything Is Under Control GoHome() Troublemaker Challenges ------------ None Game ------ Seed SubatomicCannonField Manual? 0 Play Time 00:26:24 Cumulative 4.7 hours Start 2025.09.29 @ 16:02:42 End 2025.09.29 @ 16:25:58 Sessions 1 Manual Loads 0 Difficulty Rogue Special Mode None Game No. 10 Rogue 10 Adventurer 0 Explorer 0 Win Type - Total 0 Types 0/0/0/0/0/0/0/0/0/0 Lore% 3 Gallery% 10 Achievement% 10 Wizard Run 0 Options --------- Layout 1 ASCII 0 Keyboard 0 Movement Arrows Keybinds 0 Fullscreen 1 Font 24/Smallcaps Map View 76x35 Zoom Use 0% Tactical HUD 0 Map Filters NONE Filters NONE Steam 1 RUN: b34fbebd-e336-4d24-8823-1175f4f85a62